[Event "EYCC Open-U10 2019"]
[Site "Bratislava"]
[Date "2019.08.07"]
[Round "6.11"]
[White "Salinas Tomas, Daniel"]
[Black "Deladerriere, Apollo"]
[Result "1-0"]
[ECO "C11"]
[WhiteElo "2001"]
[BlackElo "1696"]
[Annotator "NA"]
[PlyCount "73"]
[EventDate "2019.08.02"]
[EventType "swiss"]
[EventCountry "SVK"]
[SourceTitle "playchess.com"]
[Source "ChessBase"]
[SourceQuality "1"]
[TimeControl "40/5400+30:1800+30"]

1. e4 {[%emt 0:00:00]} e6 {[%emt 0:01:00]} 2. Nc3 {[%emt 0:00:01]} d5 {[%emt 0:01:49]} 3. Nf3 {[%emt 0:00:24]} Nf6 {[%emt 0:00:35]} 4. e5 {[%emt 0:00:20]} Nfd7 {[%emt 0:00:33]} 5. d4 {[%emt 0:00:22]} c5 {[%emt 0:00:36]} 6. dxc5 {[%emt 0:00:28]} Nc6 {[%emt 0:00:34]} 7. Bf4 {[%emt 0:00:16]} Bxc5 {[%emt 0:00:25]} 8. Bd3 {[%emt 0:00:17]} f6 {[%emt 0:01:05]} 9. exf6 Nxf6 {[%emt 0:00:21]} 10. Qe2 {[%emt 0:02:10]} O-O {[%emt 0:00:33]} 11. O-O-O {[%emt 0:05:22]} Bd7 {[%emt 0:15:34]} 12. h4 {[%emt 0:04:56]} a6 {[%emt 0:13:55]} 13. Ne5 {[%emt 0:06:19]} Nxe5 {[%emt 0:01:40]} 14. Bxe5 {[%emt 0:00:41]} b5 {[%emt 0:01:40]} 15. a3 {[%emt 0:05:25]} Qb6 {[%emt 0:17:36]} 16. Rhf1 {[%emt 0:17:35]} Be8 {[%emt 0:20:49]} 17. g4 {[%emt 0:02:48]} Nd7 {[%emt 0:00:39]} 18. Bg3 {[%emt 0:00:39]} Bd4 {[%emt 0:00:41]} 19. Qd2 {[%emt 0:00:45]} Bxc3 {[%emt 0:02:54]} 20. Qxc3 Nc5 {[%emt 0:00:26]} 21. Be5 {[%emt 0:10:00]} Nxd3+ {[%emt 0:05:23]} 22. Qxd3 {[%emt 0:00:12]} Rxf2 {[%emt 0:01:56]} 23. Bd4 {[%emt 0:00:16]} Rxc2+ {[%emt 0:01:04]} 24. Qxc2 {[%emt 0:00:34]} Qd8 {[%emt 0:01:16]} 25. Bc5 {[%emt 0:01:06]} Bg6 {[%emt 0:00:04]} 26. Qf2 {[%emt 0:00:44]} Rc8 {[%emt 0:00:49]} 27. h5 {[%emt 0:01:39]} d4 {[%emt 0:01:40]} 28. b4 {[%emt 0:00:36]} Qg5+ {[%emt 0:01:03]} 29. Kb2 {[%emt 0:01:08]} Bf5 {[%emt 0:01:14]} 30. gxf5 {[%emt 0:00:37]} exf5 {[%emt 0:01:38]} 31. Qxf5 {[%emt 0:00:20]} Qg2+ {[%emt 0:00:13]} 32. Rf2 {[%emt 0:00:10]} Qa8 {[%emt 0:00:04]} 33. Qf7+ {[%emt 0:00:13]} Kh8 {[%emt 0:00:06]} 34. Rg1 {[%emt 0:00:19]} Rg8 {[%emt 0:00:39]} 35. h6 {[%emt 0:00:28]} Qf8 {[%emt 0:00:41]} 36. Qxf8 {[%emt 0:00:26]} g5 {[%emt 0:00:42]} 37. Bxd4# {[%emt 0:00:10]} 1-0

[Event "EYCC Open-U10 2019"]
[Site "Bratislava"]
[Date "2019.08.07"]
[Round "6.12"]
[White "Grabs, Peter"]
[Black "Toktomushev, Teimur"]
[Result "0-1"]
[ECO "B31"]
[WhiteElo "1638"]
[BlackElo "1977"]
[Annotator "NA"]
[PlyCount "50"]
[EventDate "2019.08.02"]
[EventType "swiss"]
[EventCountry "SVK"]
[SourceTitle "playchess.com"]
[Source "ChessBase"]
[SourceQuality "1"]
[TimeControl "40/5400+30:1800+30"]

1. e4 {[%emt 0:00:01]} c5 {[%emt 0:00:00]} 2. Nf3 {[%emt 0:00:06]} Nc6 {[%emt 0:00:00]} 3. Bb5 {[%emt 0:01:28]} g6 {[%emt 0:00:00]} 4. O-O {[%emt 0:00:14]} Bg7 {[%emt 0:00:00]} 5. Re1 {[%emt 0:00:17]} Nf6 {[%emt 0:00:42]} 6. c3 {[%emt 0:00:19]} O-O {[%emt 0:02:25]} 7. d4 {[%emt 0:01:35]} cxd4 {[%emt 0:04:58]} 8. cxd4 {[%emt 0:02:43]} d6 {[%emt 0:07:48]} 9. Nc3 {[%emt 0:05:30]} Bg4 {[%emt 0:01:03]} 10. Be3 {[%emt 0:08:38]} a6 {[%emt 0:11:47]} 11. Bf1 {[%emt 0:00:31]} e5 {[%emt 0:02:00]} 12. d5 {[%emt 0:07:43]} Ne7 {[%emt 0:11:55]} 13. h3 {[%emt 0:05:56]} Bxf3 {[%emt 0:00:47]} 14. Qxf3 {[%emt 0:04:18]} Nd7 {[%emt 0:00:10]} 15. Qd1 {[%emt 0:26:47]} f5 {[%emt 0:00:31]} 16. f3 {[%emt 0:00:19]} f4 {[%emt 0:07:34]} 17. Bf2 {[%emt 0:05:52]} Nc5 {[%emt 0:07:55]} 18. b4 {[%emt 0:04:50]} Nd7 {[%emt 0:00:48]} 19. a4 {[%emt 0:07:49]} a5 {[%emt 0:15:19]} 20. b5 {[%emt 0:05:30]} Nc8 {[%emt 0:01:46]} 21. Nb1 {[%emt 0:04:15]} Bf6 {[%emt 0:05:32]} 22. Nd2 {[%emt 0:02:37]} Bh4 {[%emt 0:08:42]} 23. Nb3 {[%emt 0:01:09]} Bxf2+ {[%emt 0:00:20]} 24. Kxf2 {[%emt 0:00:08]} Qb6+ {[%emt 0:00:06]} 25. Ke2 {[%emt 0:00:14]} Qe3# {[%emt 0:00:05]} 0-1

[Event "EYCC Open-U10 2019"]
[Site "Bratislava"]
[Date "2019.08.07"]
[Round "6.13"]
[White "Hvozdz, Aliaksandr"]
[Black "Helms, Finn"]
[Result "0-1"]
[ECO "B15"]
[WhiteElo "1699"]
[BlackElo "1787"]
[Annotator "NA"]
[PlyCount "70"]
[EventDate "2019.08.02"]
[EventType "swiss"]
[EventCountry "SVK"]
[SourceTitle "playchess.com"]
[Source "ChessBase"]
[SourceQuality "1"]
[TimeControl "40/5400+30:1800+30"]

1. e4 {[%emt 0:00:00]} c6 {[%emt 0:00:00]} 2. d4 {[%emt 0:00:00]} d5 {[%emt 0:00:00]} 3. Nc3 {[%emt 0:00:00]} dxe4 {[%emt 0:00:00]} 4. Nxe4 {[%emt 0:00:00]} Nf6 {[%emt 0:00:01]} 5. Nxf6+ {[%emt 0:00:09]} exf6 {[%emt 0:00:30]} 6. c3 {[%emt 0:00:18]} Bd6 {[%emt 0:00:37]} 7. Bd3 {[%emt 0:00:10]} O-O {[%emt 0:00:21]} 8. Qc2 {[%emt 0:00:20]} g6 {[%emt 0:00:24]} 9. Bh6 {[%emt 0:01:50]} Re8+ {[%emt 0:00:29]} 10. Ne2 {[%emt 0:00:35]} Be6 {[%emt 0:02:26]} 11. O-O Nd7 12. Nf4 {[%emt 0:17:27]} f5 {[%emt 0:02:58]} 13. Nxe6 {[%emt 0:03:53]} Rxe6 {[%emt 0:00:34]} 14. f4 {[%emt 0:04:53]} Nf6 {[%emt 0:09:15]} 15. Bg5 {[%emt 0:07:06]} Qe7 {[%emt 0:04:09]} 16. Qd2 {[%emt 0:07:58]} Re8 {[%emt 0:03:18]} 17. g3 {[%emt 0:03:26]} Kg7 {[%emt 0:03:38]} 18. Bxf6+ {[%emt 0:03:48]} Qxf6 {[%emt 0:06:55]} 19. Rae1 {[%emt 0:09:53]} Qe7 {[%emt 0:06:09]} 20. Rxe6 {[%emt 0:08:03]} Qxe6 {[%emt 0:00:53]} 21. b3 {[%emt 0:02:02]} c5 {[%emt 0:07:51]} 22. Kf2 {[%emt 0:04:34]} cxd4 {[%emt 0:03:39]} 23. cxd4 {[%emt 0:01:32]} Bb4 {[%emt 0:01:03]} 24. Qe2 {[%emt 0:04:44]} Qd7 {[%emt 0:01:15]} 25. Qb2 {[%emt 0:00:29]} Rc8 {[%emt 0:01:45]} 26. d5+ {[%emt 0:04:42]} Bc3 {[%emt 0:00:28]} 27. Qe2 {[%emt 0:00:37]} Qxd5 {[%emt 0:00:42]} 28. Bc4 {[%emt 0:01:13]} Bd4+ {[%emt 0:00:40]} 29. Ke1 {[%emt 0:00:11]} Qa5+ {[%emt 0:00:12]} 30. Kd1 {[%emt 0:00:12]} Rd8 {[%emt 0:01:22]} 31. Kc1 {[%emt 0:01:08]} Qc3+ {[%emt 0:00:52]} 32. Qc2 {[%emt 0:00:30]} Qa1+ {[%emt 0:00:34]} 33. Kd2 {[%emt 0:00:47]} Bc5+ {[%emt 0:01:44]} 34. Ke2 {[%emt 0:00:30]} Qd4 {[%emt 0:00:37]} 35. Qc1 {[%emt 0:05:47]} Qe4+ {[%emt 0:01:26]} 0-1

[Event "EYCC Open-U10 2019"]
[Site "Bratislava"]
[Date "2019.08.07"]
[Round "6.14"]
[White "Zienkiewicz, Jan"]
[Black "Villa Tornero, Alex"]
[Result "1-0"]
[ECO "B01"]
[WhiteElo "1804"]
[BlackElo "1641"]
[Annotator "NA"]
[PlyCount "71"]
[EventDate "2019.08.02"]
[EventType "swiss"]
[EventCountry "SVK"]
[SourceTitle "playchess.com"]
[Source "ChessBase"]
[SourceQuality "1"]
[TimeControl "40/5400+30:1800+30"]

1. e4 d5 2. exd5 Qxd5 3. Nc3 Qd6 4. d4 Nf6 5. Nf3 a6 6. Bd3 Bg4 7. h3 Bh5 8. O-O Nc6 9. Ne4 Qd7 10. c3 e6 11. Re1 O-O-O 12. a4 e5 13. Ng3 Bg6 14. Bxg6 hxg6 15. Nxe5 Nxe5 16. Rxe5 Bd6 17. Re3 g5 18. Qf3 g4 19. hxg4 Nxg4 20. Re1 Rh7 21. Bf4 Bxf4 22. Qxf4 Rdh8 23. f3 Rh4 24. fxg4 Rxg4 25. Qf3 Rh6 26. Qf5 Re6 27. Rxe6 Qxe6 28. Qxe6+ fxe6 29. Kf2 g5 30. Re1 Rf4+ 31. Ke3 Kd7 32. Ne4 b6 33. Rg1 c6 34. Nxg5 e5 35. Nf3 c5 36. Nxe5+ 1-0

[Event "EYCC Open-U10 2019"]
[Site "Bratislava"]
[Date "2019.08.07"]
[Round "6.15"]
[White "Ljepic, Andrej"]
[Black "Dyachuk, Artem"]
[Result "1-0"]
[ECO "B40"]
[WhiteElo "1824"]
[BlackElo "1538"]
[Annotator "NA"]
[PlyCount "67"]
[EventDate "2019.08.02"]
[EventType "swiss"]
[EventCountry "SVK"]
[SourceTitle "playchess.com"]
[Source "ChessBase"]
[SourceQuality "1"]
[TimeControl "40/5400+30:1800+30"]

1. e4 c5 2. Nf3 e6 3. g3 Nc6 4. Bg2 g6 5. O-O Bg7 6. c3 d5 7. exd5 exd5 8. d4 cxd4 9. Nxd4 Nxd4 10. cxd4 Be6 11. Nc3 Ne7 12. Bg5 f6 13. Re1 Qd7 14. Bf4 Rc8 15. Qb3 O-O 16. Re2 Bf7 17. Rae1 Nf5 18. Bh3 Rc4 19. Re7 Qc8 20. Qxb7 Qxb7 21. Rxb7 Nxd4 22. Ree7 f5 23. Bg2 Rc5 24. Bxd5 Rxd5 25. Nxd5 g5 26. Bd6 Bh8 27. Nc3 Rd8 28. Rb8 Rxb8 29. Bxb8 a5 30. Kg2 Bh5 31. f4 Bf6 32. Re1 Bf3+ 33. Kf2 g4 34. Be5 1-0

[Event "EYCC Open-U10 2019"]
[Site "Bratislava"]
[Date "2019.08.07"]
[Round "6.16"]
[White "Efimov, Leonid"]
[Black "Asikainen, Eeli"]
[Result "0-1"]
[ECO "A06"]
[WhiteElo "1773"]
[BlackElo "1447"]
[Annotator "NA"]
[PlyCount "98"]
[EventDate "2019.08.02"]
[EventType "swiss"]
[EventCountry "SVK"]
[SourceTitle "playchess.com"]
[Source "ChessBase"]
[SourceQuality "1"]
[TimeControl "40/5400+30:1800+30"]

1. Nf3 {[%emt 0:00:00]} d5 {[%emt 0:00:00]} 2. g3 {[%emt 0:00:00]} e6 {[%emt 0:00:00]} 3. Bg2 {[%emt 0:00:06]} c5 {[%emt 0:00:00]} 4. O-O {[%emt 0:00:19]} Nc6 {[%emt 0:00:05]} 5. d4 {[%emt 0:00:16]} Nf6 {[%emt 0:00:12]} 6. c4 {[%emt 0:00:20]} Be7 {[%emt 0:00:33]} 7. cxd5 {[%emt 0:00:33]} exd5 {[%emt 0:00:12]} 8. Be3 {[%emt 0:00:44]} cxd4 {[%emt 0:00:45]} 9. Nxd4 {[%emt 0:00:25]} O-O {[%emt 0:00:22]} 10. Nc3 {[%emt 0:00:49]} Re8 {[%emt 0:00:27]} 11. Rc1 {[%emt 0:07:34]} Bf8 {[%emt 0:02:49]} 12. Qd3 {[%emt 0:15:04]} Ne5 {[%emt 0:10:53]} 13. Qb1 {[%emt 0:02:10]} Nc4 {[%emt 0:04:55]} 14. Bg5 {[%emt 0:02:59]} Be7 {[%emt 0:14:17]} 15. Rfd1 {[%emt 0:06:48]} Be6 {[%emt 0:02:26]} 16. e4 {[%emt 0:02:01]} Nxe4 {[%emt 0:04:23]} 17. Bxe7 {[%emt 0:03:40]} Qxe7 {[%emt 0:00:22]} 18. Nxe4 {[%emt 0:00:14]} dxe4 {[%emt 0:00:20]} 19. Bxe4 {[%emt 0:00:42]} Ne5 {[%emt 0:03:54]} 20. Nxe6 {[%emt 0:01:29]} Qxe6 {[%emt 0:00:23]} 21. Bxh7+ {[%emt 0:00:07]} Kh8 {[%emt 0:00:08]} 22. Be4 {[%emt 0:00:44]} Qb6 {[%emt 0:02:18]} 23. Qc2 {[%emt 0:05:19]} Ng4 {[%emt 0:01:12]} 24. Rd2 {[%emt 0:03:38]} Qb4 {[%emt 0:02:32]} 25. Bf5 {[%emt 0:02:20]} Ne5 {[%emt 0:02:29]} 26. Qd1 {[%emt 0:02:42]} Qxd2 {[%emt 0:01:45]} 27. Qxd2 {[%emt 0:03:42]} Nf3+ {[%emt 0:00:09]} 28. Kg2 {[%emt 0:00:09]} Nxd2 {[%emt 0:00:13]} 29. Rc7 {[%emt 0:00:43]} Ne4 {[%emt 0:00:46]} 30. h4 {[%emt 0:01:56]} Nd6 {[%emt 0:00:33]} 31. Bd3 {[%emt 0:00:17]} Rac8 {[%emt 0:00:21]} 32. Rd7 {[%emt 0:00:16]} Rc6 {[%emt 0:00:30]} 33. Kf3 {[%emt 0:01:45]} Kg8 {[%emt 0:00:45]} 34. h5 {[%emt 0:01:04]} Nc4 {[%emt 0:00:11]} 35. Bxc4 {[%emt 0:00:34]} Rxc4 {[%emt 0:00:09]} 36. Rxb7 {[%emt 0:00:35]} Rc2 {[%emt 0:00:40]} 37. g4 {[%emt 0:00:10]} Ree2 {[%emt 0:00:21]} 38. g5 {[%emt 0:00:27]} Rxf2+ {[%emt 0:00:11]} 39. Ke4 {[%emt 0:00:27]} Rxb2 {[%emt 0:00:18]} 40. Rxa7 {[%emt 0:00:00]} Rxa2 {[%emt 0:00:00]} 41. Rb7 {[%emt 0:00:21]} Rg2 {[%emt 0:00:52]} 42. Rb5 {[%emt 0:00:15]} Ra4+ {[%emt 0:00:26]} 43. Kf5 {[%emt 0:00:36]} Rag4 {[%emt 0:01:23]} 44. Rb8+ {[%emt 0:00:15]} Kh7 {[%emt 0:00:08]} 45. g6+ {[%emt 0:00:06]} fxg6+ {[%emt 0:00:13]} 46. hxg6+ {[%emt 0:00:04]} Rxg6 {[%emt 0:00:17]} 47. Rb1 {[%emt 0:00:12]} Rf6+ {[%emt 0:00:20]} 48. Ke5 {[%emt 0:00:05]} Re2+ {[%emt 0:00:10]} 49. Kd5 {[%emt 0:00:04]} Rf8 {[%emt 0:00:24]} 0-1

[Event "EYCC Open-U10 2019"]
[Site "Bratislava"]
[Date "2019.08.07"]
[Round "6.17"]
[White "Khoo-Thwe, Louis"]
[Black "Yonal, Timur"]
[Result "0-1"]
[ECO "B30"]
[WhiteElo "1746"]
[BlackElo "1512"]
[Annotator "NA"]
[PlyCount "112"]
[EventDate "2019.08.02"]
[EventType "swiss"]
[EventCountry "SVK"]
[SourceTitle "playchess.com"]
[Source "ChessBase"]
[SourceQuality "1"]
[TimeControl "40/5400+30:1800+30"]

1. e4 {[%emt 0:00:00]} c5 {[%emt 0:00:00]} 2. Nf3 {[%emt 0:00:00]} Nc6 {[%emt 0:00:00]} 3. Bb5 {[%emt 0:00:00]} e6 {[%emt 0:00:00]} 4. O-O {[%emt 0:00:16]} Nge7 {[%emt 0:00:00]} 5. Re1 {[%emt 0:00:12]} g6 {[%emt 0:00:19]} 6. c3 {[%emt 0:00:26]} Bg7 {[%emt 0:00:20]} 7. d4 {[%emt 0:00:15]} cxd4 {[%emt 0:13:24]} 8. cxd4 {[%emt 0:00:27]} Qb6 {[%emt 0:27:33]} 9. Na3 {[%emt 0:07:37]} d5 {[%emt 0:11:44]} 10. exd5 {[%emt 0:03:17]} Nxd5 {[%emt 0:07:15]} 11. Nc4 {[%emt 0:00:46]} Qc7 {[%emt 0:03:43]} 12. Nce5 {[%emt 0:02:23]} O-O {[%emt 0:03:37]} 13. Bxc6 {[%emt 0:01:46]} bxc6 {[%emt 0:00:11]} 14. Qa4 {[%emt 0:00:14]} Bb7 {[%emt 0:09:48]} 15. Bd2 {[%emt 0:04:24]} Nb6 {[%emt 0:08:54]} 16. Qa5 {[%emt 0:04:03]} Rfd8 {[%emt 0:01:05]} 17. Bf4 {[%emt 0:00:27]} Qe7 {[%emt 0:00:59]} 18. Rac1 {[%emt 0:02:05]} Rd5 {[%emt 0:00:49]} 19. Qc3 {[%emt 0:01:11]} Rc8 {[%emt 0:00:17]} 20. Qe3 {[%emt 0:03:34]} c5 {[%emt 0:02:09]} 21. dxc5 {[%emt 0:00:47]} Rdxc5 {[%emt 0:01:31]} 22. Qa3 {[%emt 0:01:09]} Nd5 {[%emt 0:03:55]} 23. Rxc5 {[%emt 0:04:31]} Qxc5 {[%emt 0:02:07]} 24. Qxc5 {[%emt 0:02:40]} Rxc5 {[%emt 0:00:04]} 25. Bg3 {[%emt 0:03:06]} Rc2 {[%emt 0:00:35]} 26. Nd3 {[%emt 0:01:37]} Ba6 {[%emt 0:00:39]} 27. Nf4 {[%emt 0:04:19]} Nxf4 {[%emt 0:01:15]} 28. Bxf4 {[%emt 0:00:10]} Bc4 {[%emt 0:00:24]} 29. b3 {[%emt 0:00:47]} Bd5 {[%emt 0:00:04]} 30. Rc1 {[%emt 0:00:29]} Rxc1+ {[%emt 0:01:10]} 31. Bxc1 {[%emt 0:00:10]} Bxf3 {[%emt 0:00:27]} 32. gxf3 {[%emt 0:00:08]} Be5 {[%emt 0:00:32]} 33. Be3 {[%emt 0:00:23]} a6 {[%emt 0:00:09]} 34. Kf1 {[%emt 0:00:30]} Bxh2 {[%emt 0:01:06]} 35. f4 {[%emt 0:00:20]} e5 {[%emt 0:00:22]} 36. f5 {[%emt 0:00:38]} Bf4 {[%emt 0:00:15]} 37. Bxf4 {[%emt 0:00:10]} exf4 {[%emt 0:00:04]} 38. f6 {[%emt 0:00:06]} Kf8 {[%emt 0:00:05]} 39. b4 {[%emt 0:00:16]} Ke8 {[%emt 0:00:06]} 40. a4 {[%emt 0:00:00]} Kd7 {[%emt 0:00:00]} 41. Ke2 {[%emt 0:00:55]} h5 {[%emt 0:00:28]} 42. Kf3 {[%emt 0:00:10]} g5 {[%emt 0:00:05]} 43. Ke4 {[%emt 0:03:57]} h4 {[%emt 0:06:27]} 44. b5 {[%emt 0:01:02]} axb5 {[%emt 0:01:02]} 45. axb5 {[%emt 0:02:06]} h3 {[%emt 0:00:27]} 46. Kf3 {[%emt 0:00:41]} Kc7 {[%emt 0:00:08]} 47. b6+ {[%emt 0:05:34]} Kxb6 {[%emt 0:01:38]} 48. Kg4 {[%emt 0:02:39]} h2 {[%emt 0:00:10]} 49. Kxg5 {[%emt 0:01:05]} h1=Q {[%emt 0:00:12]} 50. Kf5 {[%emt 0:00:57]} Kc6 {[%emt 0:00:36]} 51. Kg5 {[%emt 0:01:56]} Kd5 {[%emt 0:00:07]} 52. Kf5 {[%emt 0:00:10]} f3 {[%emt 0:00:16]} 53. Kg4 {[%emt 0:00:10]} Ke5 {[%emt 0:00:18]} 54. Kg5 {[%emt 0:00:06]} Qg2+ {[%emt 0:00:05]} 55. Kh5 {[%emt 0:00:14]} Kf5 {[%emt 0:00:15]} 56. Kh6 {[%emt 0:03:41]} Qg6# {[%emt 0:00:09]} 0-1

[Event "EYCC Open-U10 2019"]
[Site "Bratislava"]
[Date "2019.08.07"]
[Round "6.18"]
[White "Mehtizada, Murad"]
[Black "Deveci, Huseyin Said"]
[Result "0-1"]
[ECO "A45"]
[WhiteElo "1516"]
[BlackElo "1558"]
[Annotator "NA"]
[PlyCount "60"]
[EventDate "2019.08.02"]
[EventType "swiss"]
[EventCountry "SVK"]
[SourceTitle "playchess.com"]
[Source "ChessBase"]
[SourceQuality "1"]
[TimeControl "40/5400+30:1800+30"]

1. d4 {[%emt 0:00:00]} Nf6 {[%emt 0:00:00]} 2. e3 {[%emt 0:00:00]} g6 3. Bd3 {[%emt 0:00:00]} Bg7 {[%emt 0:00:00]} 4. c3 O-O {[%emt 0:00:00]} 5. f4 {[%emt 0:00:12]} d6 {[%emt 0:00:00]} 6. Nf3 {[%emt 0:00:07]} Nbd7 {[%emt 0:00:01]} 7. O-O {[%emt 0:00:07]} e5 8. e4 {[%emt 0:01:23]} exd4 {[%emt 0:00:41]} 9. cxd4 {[%emt 0:00:31]} c5 {[%emt 0:00:12]} 10. d5 {[%emt 0:04:23]} b5 {[%emt 0:10:31]} 11. Re1 c4 {[%emt 0:08:59]} 12. Bc2 {[%emt 0:16:13]} Nc5 13. a3 {[%emt 0:09:10]} Re8 {[%emt 0:05:28]} 14. Nc3 {[%emt 0:42:50]} Bb7 15. Bd2 {[%emt 0:04:03]} a6 {[%emt 0:20:12]} 16. Re2 {[%emt 0:04:54]} Qd7 17. Qe1 {[%emt 0:01:22]} Rad8 {[%emt 0:15:22]} 18. Rd1 Qc7 {[%emt 0:02:22]} 19. Bc1 {[%emt 0:01:11]} Qb6 {[%emt 0:02:39]} 20. Qf2 {[%emt 0:01:01]} Ng4 {[%emt 0:00:59]} 21. Qh4 {[%emt 0:01:01]} Nxe4+ {[%emt 0:03:16]} 22. Kf1 {[%emt 0:00:13]} Nxc3 {[%emt 0:02:10]} 23. Rxe8+ {[%emt 0:00:06]} Rxe8 {[%emt 0:00:01]} 24. bxc3 {[%emt 0:00:08]} Nf6 {[%emt 0:14:32]} 25. f5 {[%emt 0:05:51]} Bxd5 {[%emt 0:00:08]} 26. fxg6 {[%emt 0:00:38]} fxg6 {[%emt 0:04:08]} 27. Ng5 {[%emt 0:00:22]} Bxg2+ {[%emt 0:00:06]} 28. Kxg2 {[%emt 0:00:30]} Re2+ {[%emt 0:00:30]} 29. Kf1 {[%emt 0:00:33]} Rxc2 {[%emt 0:00:04]} 30. Re1 Qc6 0-1

[Event "EYCC Open-U10 2019"]
[Site "Bratislava"]
[Date "2019.08.07"]
[Round "6.19"]
[White "Shearsby, Jude"]
[Black "Bartodziej, Bartosz"]
[Result "1-0"]
[ECO "A45"]
[WhiteElo "1486"]
[BlackElo "1526"]
[Annotator "NA"]
[PlyCount "79"]
[EventDate "2019.08.02"]
[EventType "swiss"]
[EventCountry "SVK"]
[SourceTitle "playchess.com"]
[Source "ChessBase"]
[SourceQuality "1"]
[TimeControl "40/5400+30:1800+30"]

1. d4 {[%emt 0:00:00]} Nf6 {[%emt 0:00:00]} 2. Bf4 {[%emt 0:00:00]} b6 {[%emt 0:00:47]} 3. e3 {[%emt 0:00:00]} Bb7 {[%emt 0:01:12]} 4. Nf3 {[%emt 0:00:07]} g6 {[%emt 0:00:57]} 5. Bd3 {[%emt 0:00:26]} Bg7 {[%emt 0:00:53]} 6. Nc3 {[%emt 0:00:27]} d6 {[%emt 0:02:18]} 7. e4 {[%emt 0:00:43]} d5 {[%emt 0:06:30]} 8. e5 {[%emt 0:01:32]} Nfd7 {[%emt 0:00:45]} 9. e6 {[%emt 0:00:15]} fxe6 {[%emt 0:04:49]} 10. Ng5 {[%emt 0:00:49]} Nf8 {[%emt 0:02:09]} 11. Qf3 {[%emt 0:02:43]} Bf6 {[%emt 0:04:07]} 12. Be5 {[%emt 0:02:54]} Nbd7 {[%emt 0:07:32]} 13. Qf4 {[%emt 0:06:10]} Nxe5 {[%emt 0:04:49]} 14. dxe5 {[%emt 0:00:11]} Bxg5 {[%emt 0:00:18]} 15. Qxg5 {[%emt 0:00:10]} Qd7 {[%emt 0:05:07]} 16. Qh6 {[%emt 0:01:54]} Rg8 {[%emt 0:01:51]} 17. h4 {[%emt 0:01:26]} O-O-O {[%emt 0:04:12]} 18. Nb5 d4 {[%emt 0:07:29]} 19. Nxa7+ {[%emt 0:02:36]} Kb8 {[%emt 0:00:19]} 20. Nb5 {[%emt 0:00:07]} Qd5 {[%emt 0:05:11]} 21. Qg5 {[%emt 0:03:19]} Qxg2 {[%emt 0:03:27]} 22. Qxe7 {[%emt 0:06:03]} Nd7 {[%emt 0:08:52]} 23. O-O-O {[%emt 0:00:39]} Qxf2 {[%emt 0:01:46]} 24. Rhe1 {[%emt 0:04:43]} Bf3 {[%emt 0:05:16]} 25. Qa3 {[%emt 0:01:44]} Bb7 {[%emt 0:07:00]} 26. Qa7+ {[%emt 0:00:47]} Kc8 {[%emt 0:00:08]} 27. Be4 {[%emt 0:00:35]} Nc5 {[%emt 0:03:46]} 28. Bxb7+ {[%emt 0:01:06]} Nxb7 {[%emt 0:00:27]} 29. Qa8+ {[%emt 0:00:19]} Kd7 {[%emt 0:00:11]} 30. Qxb7 {[%emt 0:00:20]} Ke7 {[%emt 0:00:59]} 31. Qxc7+ {[%emt 0:00:20]} Rd7 {[%emt 0:00:26]} 32. Qc4 {[%emt 0:03:19]} d3 {[%emt 0:03:49]} 33. cxd3 {[%emt 0:02:25]} Rd5 {[%emt 0:01:30]} 34. Nc3 {[%emt 0:03:27]} Rc5 {[%emt 0:00:51]} 35. Qb4 {[%emt 0:01:59]} Kd7 {[%emt 0:02:05]} 36. Qa4+ {[%emt 0:01:51]} Kc7 {[%emt 0:02:32]} 37. Qa7+ {[%emt 0:00:10]} Kc6 {[%emt 0:00:20]} 38. Qa4+ {[%emt 0:08:08]} Kb7 {[%emt 0:01:09]} 39. Qe4+ {[%emt 0:00:37]} Kc7 {[%emt 0:01:48]} 40. Rf1 {[%emt 0:00:00]} 1-0

[Event "EYCC Open-U10 2019"]
[Site "Bratislava"]
[Date "2019.08.07"]
[Round "6.20"]
[White "Gordeev, Denis"]
[Black "Kisic, Jovan"]
[Result "1-0"]
[ECO "A45"]
[WhiteElo "1467"]
[BlackElo "1757"]
[Annotator "NA"]
[PlyCount "87"]
[EventDate "2019.08.02"]
[EventType "swiss"]
[EventCountry "SVK"]
[SourceTitle "playchess.com"]
[Source "ChessBase"]
[SourceQuality "1"]
[TimeControl "40/5400+30:1800+30"]

1. d4 {[%emt 0:00:00]} Nf6 {[%emt 0:01:58]} 2. Nc3 {[%emt 0:00:20]} e6 {[%emt 0:00:42]} 3. e4 {[%emt 0:02:52]} Bb4 {[%emt 0:02:35]} 4. Bd3 {[%emt 0:02:10]} h6 {[%emt 0:02:12]} 5. Nge2 {[%emt 0:02:42]} b6 {[%emt 0:01:29]} 6. a3 {[%emt 0:03:41]} Bxc3+ {[%emt 0:02:59]} 7. Nxc3 {[%emt 0:01:22]} Bb7 {[%emt 0:01:42]} 8. O-O {[%emt 0:02:27]} O-O {[%emt 0:01:06]} 9. Be3 {[%emt 0:02:27]} d6 {[%emt 0:02:45]} 10. f4 {[%emt 0:07:17]} c5 {[%emt 0:06:02]} 11. dxc5 {[%emt 0:11:42]} dxc5 {[%emt 0:09:35]} 12. Qf3 {[%emt 0:09:53]} Qe7 {[%emt 0:07:28]} 13. Rae1 {[%emt 0:05:27]} Nbd7 {[%emt 0:04:35]} 14. g4 {[%emt 0:07:56]} Nh7 {[%emt 0:08:33]} 15. Qg3 {[%emt 0:03:43]} e5 {[%emt 0:03:22]} 16. f5 {[%emt 0:01:52]} Rac8 {[%emt 0:01:47]} 17. b3 {[%emt 0:05:03]} a6 {[%emt 0:03:13]} 18. a4 {[%emt 0:01:23]} Rfd8 {[%emt 0:04:43]} 19. h4 {[%emt 0:02:12]} f6 {[%emt 0:02:36]} 20. Bc4+ {[%emt 0:00:46]} Kf8 {[%emt 0:01:37]} 21. Qh3 {[%emt 0:01:42]} Ra8 {[%emt 0:02:19]} 22. Rf2 {[%emt 0:03:58]} Ke8 {[%emt 0:01:43]} 23. Nd5 {[%emt 0:03:19]} Bxd5 {[%emt 0:00:49]} 24. Bxd5 {[%emt 0:00:07]} Rab8 {[%emt 0:00:19]} 25. Rg2 {[%emt 0:00:59]} Rdc8 {[%emt 0:02:33]} 26. Rd1 {[%emt 0:04:32]} Nhf8 {[%emt 0:03:34]} 27. g5 {[%emt 0:01:46]} h5 {[%emt 0:02:06]} 28. Qf3 {[%emt 0:00:44]} Kd8 {[%emt 0:00:25]} 29. Qxh5 {[%emt 0:02:10]} Kc7 {[%emt 0:00:28]} 30. g6 {[%emt 0:00:29]} c4 {[%emt 0:01:20]} 31. Bxc4 {[%emt 0:00:46]} Nc5 {[%emt 0:00:10]} 32. Bd5 {[%emt 0:00:19]} Rd8 {[%emt 0:00:21]} 33. Qe2 {[%emt 0:00:34]} Rd7 {[%emt 0:00:27]} 34. Qc4 {[%emt 0:00:54]} Kd8 {[%emt 0:00:27]} 35. Rgd2 {[%emt 0:00:23]} Rc8 {[%emt 0:00:17]} 36. Qb4 {[%emt 0:00:42]} Kc7 {[%emt 0:02:17]} 37. a5 {[%emt 0:00:36]} Kd8 {[%emt 0:01:54]} 38. Qxb6+ {[%emt 0:01:47]} Rcc7 {[%emt 0:00:29]} 39. Bc6 {[%emt 0:01:26]} Rxd2 {[%emt 0:00:32]} 40. Rxd2+ {[%emt 0:00:00]} Ncd7 {[%emt 0:00:00]} 41. Qb8+ {[%emt 0:00:23]} Rc8 {[%emt 0:00:14]} 42. Bb6+ {[%emt 0:00:09]} Ke8 {[%emt 0:00:08]} 43. Qxc8+ {[%emt 0:00:10]} Qd8 {[%emt 0:00:04]} 44. Qxd8# {[%emt 0:00:09]} 1-0